Cogmind - Beta 15 @@@ ROGUE MODE // 2025.05.10 @ 18:55:28 Player: LightKnight Result: Destroyed by B-99 Colossus with Multirail Performance ------------- Evolutions (9) 4500 Regions Visited (20) 4000 Robots Destroyed (114) 570 Value Destroyed (6136) 6136 Prototype IDs (32) 640 Alien Tech Used (0) 0 Bonus (6990) 6990 TOTAL SCORE: 22836 Bonus ------- High Alert Combat Kills 342 Follower Combat Kills 1618 Entered Garrisons 1000 Used RIF Installer 3000 Entered DSFs 1000 Aligned with FarCom 300 Friendly Fire -270 Cogmind --------- Core Integrity 0/1600 Matter 265/300 Energy 99/100 System Corruption 23% Temperature Cool (0) Movement Core (50) Location -1/Access Parts ------- > --- POWER (2) -------- (None) > --- PROPULSION (6) --- (None) > --- UTILITY (14) ----- Advanced Signal Interpreter Core Analyzer > --- WEAPON (3) ------- (None) > --- INVENTORY (5) ---- Superbattery (1118) Advanced Melee Analysis Suite Improved Matter Neutralizer Power Sword Peak State ------------ > --- POWER ------------ Fusion Reactor > --- PROPULSION ------- Improved Heavy Treads Improved Heavy Treads > --- UTILITY ---------- Advanced Cryofiber Web Advanced Heat Sink Advanced Heat Sink Large Storage Unit Enhanced Optical Array Advanced Targeting Computer Improved Target Analyzer Medium Reactive Plating Graphene Brace Relay Coupler [Grunt] System Guard > --- WEAPON ----------- Long-range Proton Cannon Heavy Plasma Cannon Mini Assault Cannon > --- INVENTORY -------- Angular Momentum Engine Superbattery Matter Compressor Relay Coupler [Swarmer] Relay Coupler [Swarmer] Relay Coupler [Grunt] Relay Coupler [Brawler] Relay Coupler [Duelist] Relay Coupler [Sentry] Relay Coupler [Hunter] High-powered Shock Rifle Improved Proton Missile Launcher Heavy Missile Launcher Remote Datajack Improved Remote Datajack [Rating: 107] Favorites ----------- Power Angular Momentum Engine Engine Angular Momentum Engine Power Core Light Nuclear Core Reactor Fusion Reactor Propulsion Improved Medium Treads Treads Improved Medium Treads Leg Aluminum Leg Hover Unit Combat Antigrav System Flight Unit Impulse Thruster Array Utility Advanced Targeting Computer Device Advanced Heat Sink Storage Large Storage Unit Processor Advanced Targeting Computer Hackware Relay Coupler [Grunt] Protection Medium Reactive Plating Weapon Heavy Plasma Cannon Energy Gun Lightning Gun Energy Cannon Heavy Plasma Cannon Ballistic Gun Minigun Ballistic Cannon Mini Assault Cannon Launcher Rocket Launcher Special Weapon Remote Datajack Slashing Weapon Power Sword Build | -11 -10 -10 -10 -9 -8 -8 -7 -7 -6 -6 -6 -6 -5 -5 -4 -4 -3 -2 -2 -1 ------- Run | Yrd Mat Min Exi Min Mat Gar Fac Gar Fac Gar Fac DSF Fac Gar Fac Gar Res Res DSF Acc Slots Evolved 18 | . . . . . 4 . 2 . 2 . . . 2 . 2 . 2 2 . 2 Power 1 | . . . . . . . . . . . . . . . . . 1 . . . Propulsion 4 | . . . . . 1 . . . . . . . 1 . . . 1 1 . . Utility 12 | . . . . . 2 . 2 . 2 . . . 1 . 2 . . 1 . 2 Weapon 1 | . . . . . 1 . . . . . . . . . . . . . . . Parts Attached 134 | . 5 8 1 1 18 16 4 3 10 9 1 1 8 8 6 2 20 1 1 11 Power 11 | . . 2 . . 1 2 . . 1 . . . 2 . 1 . . . . 2 Engine 5 | . . 2 . . . 1 . . 1 . . . . . 1 . . . . . Core 3 | . . . . . 1 1 . . . . . . . . . . . . . 1 Reactor 3 | . . . . . . . . . . . . . 2 . . . . . . 1 Propulsion 28 | . 2 2 1 . 6 5 . . . 2 1 . 1 . . . 4 . . 4 Treads 15 | . . . . . 6 5 . . . 2 1 . 1 . . . . . . . Leg 5 | . 2 2 1 . . . . . . . . . . . . . . . . . Wheel . | . . . . . . . . . . . . . . . . . . . . . Hover 2 | . . . . . . . . . . . . . . . . . 2 . . . Flight 6 | . . . . . . . . . . . . . . . . . 2 . . 4 Utility 61 | . 2 . . . 6 3 2 1 7 6 . 1 3 6 4 2 13 1 . 4 Device 23 | . 2 . . . 1 1 . . 3 2 . . . 1 2 . 8 1 . 2 Storage 3 | . . . . . 3 . . . . . . . . . . . . . . . Processor 12 | . . . . . 2 . 1 . 1 . . . 2 1 . . 4 . . 1 Hackware 20 | . . . . . . 1 1 1 2 4 . 1 1 3 2 2 1 . . 1 Protection 3 | . . . . . . 1 . . 1 . . . . 1 . . . . . . Artifact . | . . . . . . . . . . . . . . . . . . . . . Weapon 34 | . 1 4 . 1 5 6 2 2 2 1 . . 2 2 1 . 3 . 1 1 Energy Gun 5 | . . . . . . 2 . 1 . . . . . 1 1 . . . . . Energy Cannon 7 | . . . . . . 2 1 . 1 . . . 1 . . . 2 . . . Ballistic Gun 8 | . 1 2 . . 5 . . . . . . . . . . . . . . . Ballistic Cannon 3 | . . 1 . . . . . . . . . . . 1 . . 1 . . . Launcher 5 | . . 1 . . . 1 . . 1 1 . . . . . . . . . 1 Special Weapon 4 | . . . . . . 1 1 1 . . . . 1 . . . . . . . Impact Weapon . | . . . . . . . . . . . . . . . . . . . . . Slashing Weapon 2 | . . . . 1 . . . . . . . . . . . . . . 1 . Piercing Weapon . | . . . . . . . . . . . . . . . . . . . . . Special Melee Weapon . | . . . . . . . . . . . . . . . . . . . . . Unidentified Prototypes 9 | . . . . . 1 . . . . . . . 1 1 . . 5 . . 1 Parts Lost 46 | . 1 1 . . . 1 . . 5 2 . 1 . 1 2 12 4 . . 16 Power 4 | . . 1 . . . . . . . . . . . . 1 . . . . 2 Propulsion 10 | . . . . . . . . . 2 1 . . . . 1 1 2 . . 3 Utility 23 | . . . . . . . . . 3 1 . . . 1 . 7 2 . . 9 Weapon 9 | . 1 . . . . 1 . . . . . 1 . . . 4 . . . 2 Highest Loss Streak 12 | . 1 1 . . . 1 . . 2 2 . 1 . 1 2 12 3 . . 11 To Critical Strikes 1 | . . . . . . . . . . . . . . . . . . . . 1 Average Backups 11 | . 7 7 7 8 9 14 14 14 14 12 12 12 12 14 14 11 4 5 4 4 Power . | . 1 . . . . . 1 1 1 1 1 1 1 1 . . . . . . Propulsion 1 | . 4 3 2 2 . 1 1 1 . . 1 2 2 . . . . . . . Utility 5 | . 1 2 2 3 3 6 6 7 6 6 8 7 6 6 8 7 2 3 2 1 Weapon 3 | . . 1 3 3 4 4 3 3 3 3 2 2 2 5 3 3 1 2 2 2 Tool/Special . | . . . . . . . . . . . . . . . . . . . . . Unused Backups 31 | . 2 5 . . 3 5 1 . 3 1 . . . 2 . 6 1 . . 2 Power 5 | . . 2 . . . 1 . . 2 . . . . . . . . . . . Propulsion 2 | . 2 . . . . . . . . . . . . . . . . . . . Utility 15 | . . 1 . . 3 1 . . 1 1 . . . 1 . 6 . . . 1 Weapon 9 | . . 2 . . . 3 1 . . . . . . 1 . . 1 . . 1 Tool/Special . | . . . . . . . . . . . . . . . . . . . . . Average Slot Usage (%) 85 | . 93 99 100 100 96 99 99 93 93 78 93 88 86 84 81 76 39 37 40 47 Engine 5 | . 14 13 14 14 4 1 7 7 6 6 6 6 4 . . 4 . . . . Core 1 | . . . . . 4 7 . . . . . . . . . . . . . . Treads 12 | . . . . . 24 27 23 23 19 12 13 13 11 11 9 4 . . . . Leg 4 | . 28 28 28 28 . . . . . . . . . . . . . . . . Device 11 | . 8 14 14 14 9 8 7 7 17 8 13 13 11 12 12 14 10 2 5 8 Storage 7 | . 14 14 14 14 9 9 7 7 6 6 6 6 5 5 5 4 . . . 1 Processor 12 | . . . . . 17 12 14 15 13 13 13 8 11 17 21 20 14 21 21 17 Hackware 3 | . . . . . . . 7 1 2 3 13 17 16 6 6 8 3 4 4 4 Protection 3 | . . . . . . 5 7 7 6 6 6 6 5 4 5 4 . . . . Energy Gun 2 | . 7 . . . . 6 . 3 5 4 6 2 . . 1 4 . . . . Energy Cannon 5 | . . . . . . 2 14 11 11 12 6 6 10 10 7 2 . . . . Ballistic Gun 6 | . 20 21 14 14 24 15 . . . . . . . . . . . . . . Launcher 1 | . . 4 14 11 . 1 . . . . . . . . . . . . . . Special Weapon 1 | . . . . . . . 7 6 1 2 6 6 5 3 1 4 . . . . Peak Build Rating 107 | . 7 10 11 12 30 45 53 53 69 68 73 74 95 95 107 90 102 62 72 90 Average Rating 51 | . 6 8 10 11 25 34 52 49 57 56 70 70 88 91 96 81 55 60 66 71 On Entrance 46 | 6 6 7 10 11 12 30 45 53 48 50 68 73 70 95 93 86 14 55 62 72 Naked Turns . | . . . . . . . . . . . . . . . . . . . . . Heaviest Build 83 | 11 12 18 18 18 36 75 77 77 83 82 72 72 77 78 78 75 29 3 7 31 Greatest Support 150 | 20 20 20 20 20 63 83 83 83 83 105 105 105 150 150 150 75 16 16 16 37 Greatest Overweight (x) 26 | . . . . . . . . . 1 26 . . . . . 1 3 . . 4 Average Overweight (x) . | . . . . . . . . . . . . . . . . . . . . . Largest Inventory Capacity 15 | . 8 8 8 8 15 15 15 15 15 15 15 15 15 15 15 15 5 5 5 5 Average Capacity 12 | . 8 8 8 8 11 15 15 15 15 15 15 15 15 15 15 13 5 5 5 5 Most Carried 15 | . 8 8 8 8 15 15 15 15 15 15 14 14 15 15 15 13 5 5 5 5 Average Carried 11 | . 7 7 7 8 9 14 14 14 14 12 13 13 12 14 14 11 4 5 4 4 Final Capacity 15 | 8 8 8 8 8 15 15 15 15 15 15 15 15 15 15 15 5 5 5 5 5 Final Carried 15 | 6 8 8 8 8 14 15 15 14 12 13 14 14 15 15 12 4 5 5 5 4 Class Distribution -------------------- 27% | Mutant 19% | Gunner 10% | Bothacker-Tank 10% | Scavenger-Gunner 8% | Scavenger-Skirmisher 7% | Botlord-Tank 4% | Commander-Skirmisher Dominant Class ---------------- Mutant | -10/Materials Mutant | -10/Mines Mutant | -10/Exiles Mutant | -9/Mines Gunner | -8/Materials Gunner | -8/Garrison Bothacker-Skirmisher | -7/Factory Scavenger-Skirmisher | -7/Garrison Scavenger-Gunner | -6/Factory Gunner | -6/Garrison Bothacker-Tank | -6/Factory Bothacker-Mutant | -6/DSF Bothacker-Tank | -5/Factory Scavenger-Tank | -5/Garrison Botlord-Tank | -4/Factory Botlord-Tank | -4/Garrison Mutant | -3/Research Mutant | -2/Research Mutant | -2/DSF Mutant | -1/Access Resources | -11 -10 -10 -10 -9 -8 -8 -7 -7 -6 -6 -6 -6 -5 -5 -4 -4 -3 -2 -2 -1 ----------- Run | Yrd Mat Min Exi Min Mat Gar Fac Gar Fac Gar Fac DSF Fac Gar Fac Gar Res Res DSF Acc Matter Collected 3245 | 200 97 147 . 29 431 536 . 209 405 211 . 30 80 212 234 2 3 . . 419 Remotely . | . . . . . . . . . . . . . . . . . . . . . Salvage Created 5085 | . 251 263 . 29 176 807 . 253 1181 844 . . 38 499 320 . 33 . . 391 Parts 251 | . 10 21 . 6 12 57 . 11 51 34 . . . 24 11 . 1 . . 13 Haulers Intercepted 4 | . 1 . . . 1 . . . 1 . . . . . . . . . . 1 Recyclers Shooed 3 | . . . . . 2 . . . . . . . . . . . . . . 1 Parts Field Recycled . | . . . . . . . . . . . . . . . . . . . . . Retrieved Matter . | . . . . . . . . . . . . . . . . . . . . . Parts Self-Destructed . | . . . . . . . . . . . . . . . . . . . . . Prevented . | . . . . . . . . . . . . . . . . . . . . . Kills | -11 -10 -10 -10 -9 -8 -8 -7 -7 -6 -6 -6 -6 -5 -5 -4 -4 -3 -2 -2 -1 ------- Run | Yrd Mat Min Exi Min Mat Gar Fac Gar Fac Gar Fac DSF Fac Gar Fac Gar Res Res DSF Acc Combat Hostiles Destroyed 97 | . 4 10 . 4 4 18 . 5 18 12 . . . 9 7 . 1 . . 5 Guns 33 | . 4 8 . 1 4 11 . . 5 . . . . . . . . . . . Cannons 33 | . . 2 . . . . . 4 10 7 . . . 8 1 . 1 . . . AOE 25 | . . . . 3 . 6 . . . 5 . . . . 6 . . . . 5 Classes Destroyed 15 | . 2 2 . . . 4 . . 2 1 . . 1 1 1 . . . . 1 Worker 2 | . . . . . . . . . . . . . . . . . . . . 2 Builder 2 | . . . . . . . . . 1 . . . . . 1 . . . . . Hauler 4 | . 1 . . . 1 . . . 1 . . . . . . . . . . 1 Recycler 3 | . . . . . . . . . 1 . . . . . 1 . . . . 1 Watcher 2 | . . . . . . . . . . . . . 1 . . . . . . 1 Swarmer 38 | . . 6 . 4 2 4 . 1 4 4 . . . 2 5 . 1 . . 5 Cutter 1 | . . . . . . . . . . . . . . 1 . . . . . . Grunt 40 | . 4 2 . . . 7 . 4 13 6 . . . 4 . . . . . . Brawler 1 | . . . . . . . . . . 1 . . . . . . . . . . Duelist 1 | . . . . . . 1 . . . . . . . . . . . . . . Sentry 9 | . . 2 . . 2 4 . . . . . . . 1 . . . . . . Hunter 2 | . . . . . . 1 . . . . . . . . 1 . . . . . Programmer 7 | . . . . . . 2 . . 1 1 . . . 2 1 . . . . . Behemoth 1 | . . . . . . 1 . . . . . . . . . . . . . . Infiltrator 1 | . . . . . . . . . . . . . . . 1 . . . . . Best Kill Streak 8 | . 2 3 . 4 3 3 . 2 7 5 . . 1 3 8 . 1 . . 6 Combat Bots Only 6 | . 2 3 . 4 2 3 . 2 5 5 . . . 3 6 . 1 . . 5 Max Kills in Single Turn 6 | . 1 2 . 3 2 3 . 1 2 2 . . 1 1 5 . 1 . . 6 Gunslinging 1 | . . 1 . . . . . . . . . . . . . . . . . . Exploded 5 | . . . . 3 . 2 . . . 1 . . . . 5 . . . . 5 Melee . | . . . . . . . . . . . . . . . . . . . . . Uniques/NPCs Destroyed . | . . . . . . . . . . . . . . . . . . . . . Combat | -11 -10 -10 -10 -9 -8 -8 -7 -7 -6 -6 -6 -6 -5 -5 -4 -4 -3 -2 -2 -1 -------- Run | Yrd Mat Min Exi Min Mat Gar Fac Gar Fac Gar Fac DSF Fac Gar Fac Gar Res Res DSF Acc Hostile Shots Fired 800 | . 23 66 . 5 9 59 7 23 66 60 . 6 3 34 66 101 106 . 1 165 Missed 286 | . 5 14 . 2 . 23 . 7 18 26 . . . 12 26 38 48 . . 67 Hits 514 | . 18 52 . 3 9 36 7 16 48 34 . 6 3 22 40 63 58 . 1 98 Melee 1 | . . . . . . . . . . . . . . 1 . . . . . . Projectile 513 | . 18 52 . 3 9 36 7 16 48 34 . 6 3 21 40 63 58 . 1 98 AOE 5 | . . . . . . 3 . . . . . . 1 1 . . . . . . Critical Strikes 20 | . 1 . . . 1 3 . . . . . 2 . 2 1 3 3 . . 4 Actively Blocked 5 | . . . . . . . . . . . . . . . 1 3 1 . . . Damage Taken 9840 | . 208 548 . 46 137 816 106 204 696 516 . 154 249 453 584 1317 1237 . 91 2478 Core 3257 | . 33 89 . 12 . 87 18 36 50 83 . . . 2 67 736 440 . . 1604 Absorbed by Shields 61 | . . . . . . 9 . . . . . . . . . . . . . 52 Ignored by Resistances 462 | . . . . . . 17 . 37 46 84 . 71 14 40 153 . . . . . Core Remaining (%) 77 | 100 . . . 46 . 84 . 92 . . . 84 . 99 . 30 66 . 100 . Volleys Fired 321 | . 31 34 . 3 7 47 3 18 39 39 . 6 9 32 23 15 13 . . 2 Largest 3 | . 2 2 . 2 3 3 1 3 3 3 . 1 2 3 3 1 1 . . 1 Hottest 250 | . 60 53 . 56 75 125 5 163 225 250 . 90 171 211 181 90 113 . . 52 Shots Fired 618 | . 62 68 . 4 21 118 3 25 98 72 . 6 14 57 40 15 13 . . 2 Gun 315 | . 62 62 . 3 21 109 . 4 32 10 . . . 2 5 5 . . . . Cannon 236 | . . 6 . . . 3 . 10 63 49 . 3 10 48 26 5 13 . . . Launcher 15 | . . . . 1 . 4 . 1 . 6 . . . . 1 . . . . 2 Special 52 | . . . . . . 2 3 10 3 7 . 3 4 7 8 5 . . . . Kinetic 244 | . 51 68 . 3 21 76 . . . . . . . 8 14 1 2 . . . Thermal 190 | . . . . . . 25 . 2 60 49 . 3 5 27 5 3 11 . . . Explosive 9 | . . . . 1 . 4 . 1 . . . . . . 1 . . . . 2 Electromagnetic 123 | . 11 . . . . 11 . 12 35 16 . . 5 15 12 6 . . . . Robot Hit Streak 18 | . 7 13 . 2 6 18 12 13 12 9 . 7 12 10 8 4 6 . . . Robot Miss Streak 5 | . 5 3 . 1 3 3 . 1 4 4 . 1 1 3 5 1 1 . . 2 Penetration Max . | . . . . . . . . . . . . . . . . . . . . . Secondary Targets 7 | . 2 2 . . . 3 . . . . . . . . . . . . . . Max Gunslinging Chain 1 | . 1 1 . . . 1 . . . . . . . . . . . . . . Shots Hit Robots 390 | . 34 51 . 2 9 81 3 17 54 44 . 5 11 35 23 4 2 . . 15 Core Hits 207 | . 13 23 . 4 6 45 . 8 33 28 . . 2 15 15 . 1 . . 14 Critical Kills 7 | . . 1 . . . . . 1 3 1 . . . 1 . . . . . . Critical Parts Destroyed 1 | . 1 . . . . . . . . . . . . . . . . . . . Critical Strikes 26 | . 1 1 . . . 3 . 1 7 2 . . . 3 4 . . . . 4 Burn 2 | . . . . . . 2 . . . . . . . . . . . . . . Meltdown 6 | . . . . . . . . 1 3 1 . . . 1 . . . . . . Destroy 3 | . 1 1 . . . 1 . . . . . . . . . . . . . . Blast 5 | . . . . . . . . . . . . . . 1 4 . . . . . Corrupt 6 | . . . . . . . . . 4 1 . . . 1 . . . . . . Sever 4 | . . . . . . . . . . . . . . . . . . . . 4 Melee Attacks 43 | . . . . 2 . . . . . . . . . . . . . . . 41 Impact . | . . . . . . . . . . . . . . . . . . . . . Slashing 43 | . . . . 2 . . . . . . . . . . . . . . . 41 Piercing . | . . . . . . . . . . . . . . . . . . . . . Sneak Attacks 3 | . . . . . . . . . . . . . . . . . . . . 3 Combat Hostiles . | . . . . . . . . . . . . . . . . . . . . . Follow-up Attacks . | . . . . . . . . . . . . . . . . . . . . . Damage Inflicted 11235 | . 290 550 . 149 218 2170 5 368 1878 1728 . 107 274 1003 1184 10 95 . . 1206 Guns 3082 | . 290 420 . 12 203 1366 . 39 529 96 . . . 58 69 . . . . . Cannons 4280 | . . 73 . . . . . 208 1321 931 . 98 220 945 409 . 75 . . . Explosions 2962 | . . . . 137 . 804 . 121 . 701 . . 54 . 706 . . . . 439 Melee 752 | . . . . . . . . . . . . . . . . . . . . 752 Ramming 159 | . . 57 . . 15 . 5 . 28 . . 9 . . . 10 20 . . 15 Kinetic 2319 | . 220 493 . 12 203 917 . . . . . . . 186 288 . . . . . Thermal 4385 | . . . . . . 592 . 31 1301 1093 . 98 165 480 550 . 75 . . . Explosive 1528 | . . . . 137 . 554 . 121 . . . . . . 277 . . . . 439 Electromagnetic 2092 | . 70 . . . . 107 . 216 549 635 . . 109 337 69 . . . . . Impact . | . . . . . . . . . . . . . . . . . . . . . Slashing 752 | . . . . . . . . . . . . . . . . . . . . 752 Piercing . | . . . . . . . . . . . . . . . . . . . . . Highest Corruption 23 | . . . . . . 1 . . . . . . . 4 . . . . . 23 Average Corruption 5 | . . . . . . 1 . . . . . . . 3 . . . . . 19 Corruption Purged . | . . . . . . . . . . . . . . . . . . . . . Corruption Blocked 6 | . . . . . . . . . . . . . . . . . 4 . . 2 Effects 25 | . . . . . . 9 . . . . . . . 2 . . . . . 14 Message Errors 6 | . . . . . . 4 . . . . . . . 1 . . . . . 1 Matter Fused 8 | . . . . . . 2 . . . . . . . . . . . . . 6 Heat Flow Errors 3 | . . . . . . 2 . . . . . . . . . . . . . 1 Energy Discharges 2 | . . . . . . . . . . . . . . . . . . . . 2 Data Loss (minor) 2 | . . . . . . . . . . . . . . . . . . . . 2 Data Loss (major) 1 | . . . . . . 1 . . . . . . . . . . . . . . Misfires 1 | . . . . . . . . . . . . . . 1 . . . . . . Misdirections 2 | . . . . . . . . . . . . . . . . . . . . 2 Overload Shots . | . . . . . . . . . . . . . . . . . . . . . Overflow Damage 229 | . . . . . . 12 . . 66 73 . . 33 16 1 . . . . 28 Projectiles 168 | . . . . . . . . . 66 52 . . 33 16 1 . . . . . Explosions 33 | . . . . . . 12 . . . 21 . . . . . . . . . . Melee 28 | . . . . . . . . . . . . . . . . . . . . 28 Knockbacks 11 | . . 1 . . . . . . 1 . . . . 3 6 . . . . . Impact 1 | . . . . . . . . . 1 . . . . . . . . . . . Kinetic 8 | . . 1 . . . . . . . . . . . 2 5 . . . . . Secondary 2 | . . . . . . . . . . . . . . 1 1 . . . . . Self-Inflicted Damage 276 | . . . . 24 . 167 . . . . . . 42 . 23 4 9 . . 7 Shots 8 | . . . . 1 . 5 . . . . . . 1 . 1 . . . . . Rammed 13 | . . . . . 2 . 1 . 2 . . 1 . . . 4 2 . . 1 Targets Rammed 27 | . . 14 . . 2 . 1 . 2 . . 1 . . . 4 2 . . 1 Kicked 14 | . . 14 . . . . . . . . . . . . . . . . . . Crushed . | . . . . . . . . . . . . . . . . . . . . . Highest Temperature 484 | . 88 18 . . . 199 . 42 197 484 . . 162 117 . 24 82 . . 80 Average Temperature 85 | . 43 9 . . . 35 . 19 107 137 . . 64 33 . 15 29 . . 58 Received Heat Transfer 1432 | . 132 132 . . 63 187 63 72 225 144 . . 30 63 42 243 18 . . 18 Effects 3 | . . . . . . . . . . 3 . . . . . . . . . . Shutdowns 2 | . . . . . . . . . . 2 . . . . . . . . . . Energy Bleed 1 | . . . . . . . . . . 1 . . . . . . . . . . Siege Activations 1 | . . . . . . . . . . . . . . . . 1 . . . . Total Turns 3 | . . . . . . . . . . . . . . . . 3 . . . . Longest Duration 3 | . . . . . . . . . . . . . . . . 3 . . . . Martial Activations . | . . . . . . . . . . . . . . . . . . . . . Shielding Activations . | . . . . . . . . . . . . . . . . . . . . . Robots Disrupted 1 | . . . . . . . . . . 1 . . . . . . . . . . Combat Hostiles 1 | . . . . . . . . . . 1 . . . . . . . . . . Robots Corrupted . | . . . . . . . . . . . . . . . . . . . . . Combat Hostiles . | . . . . . . . . . . . . . . . . . . . . . Parts Fried 6 | . . . . . . 1 . 3 2 . . . . . . . . . . . Impact Corruptions . | . . . . . . . . . . . . . . . . . . . . . Robots Melted 7 | . . . . . . 1 . 1 3 1 . . . 1 . . . . . . Combat Hostiles 6 | . . . . . . 1 . 1 3 . . . . 1 . . . . . . Parts Melted 14 | . . . . . . 2 . . 4 4 . . . 4 . . . . . . Heat Transferred 6099 | . . . . . . 1077 . 50 1850 1550 . 150 200 648 500 . 74 . . . Parts Sabotaged . | . . . . . . . . . . . . . . . . . . . . . Parts Stolen . | . . . . . . . . . . . . . . . . . . . . . Parts Stripped . | . . . . . . . . . . . . . . . . . . . . . Power Chain Reactions 6 | . . . . . . 2 . . . 3 . . 1 . . . . . . . Alert | -11 -10 -10 -10 -9 -8 -8 -7 -7 -6 -6 -6 -6 -5 -5 -4 -4 -3 -2 -2 -1 ------- Run | Yrd Mat Min Exi Min Mat Gar Fac Gar Fac Gar Fac DSF Fac Gar Fac Gar Res Res DSF Acc Maximum Alert Level 3 | . . . . . . 3 2 . 2 3 1 1 . 3 2 1 . . . . Low Security (%) 61 | . 100 100 . 100 100 23 60 100 78 . . . 100 29 . . 100 100 100 100 Level 1 17 | . . . . . . 3 24 . 13 47 100 100 . 9 47 100 . . . . Level 2 17 | . . . . . . 64 14 . 7 32 . . . 46 52 . . . . . Level 3 3 | . . . . . . 8 . . . 19 . . . 14 . . . . . . Level 4 . | . . . . . . . . . . . . . . . . . . . . . Level 5 . | . . . . . . . . . . . . . . . . . . . . . High Security . | . . . . . . . . . . . . . . . . . . . . . Max Security . | . . . . . . . . . . . . . . . . . . . . . Peak Influence 857 | . 100 82 . 116 111 801 420 181 423 733 384 388 197 857 530 394 138 6 3 125 Initial 449 | . . 22 . . 10 51 420 54 94 279 384 250 193 35 449 333 138 6 3 1 Average 206 | . 57 20 . 61 36 426 211 136 89 497 372 270 96 422 413 358 30 2 3 22 Influence Increases 5144 | . 157 245 . 118 321 860 6 247 636 514 4 188 120 872 389 153 134 4 . 176 Destroy 0b10 Robot/C 2680 | . 80 200 . 80 180 480 . 140 480 275 . 90 45 345 195 . 15 . . 75 Destroy 0b10 Robot/NC 93 | . 5 . . . 10 . . . 20 10 . . 16 . 12 . . . . 20 Destroy Leader 310 | . 12 30 . 10 52 20 . 10 70 10 . 16 12 24 32 . . . . 12 Allied During Kill 482 | . . . . 14 38 79 . 18 18 10 . 29 17 211 48 . . . . . Successful Hack 72 | . . . . . 11 14 6 . . . 4 . . 11 . 11 11 4 . . Disable Machine 144 | . . . . . 30 . . . 30 . . 12 12 12 36 . 12 . . . Anti-Garrison Action 591 | . . . . . . 150 . 50 . 88 . . . 265 . 38 . . . . Destroy Structure 316 | . . . . 14 . 72 . 14 18 16 . 5 18 4 66 20 12 . . 57 Partial Spotted 12 | . . . . . . . . . . . . . . . . 12 . . . . Lose Combat Pursuer 444 | . 60 15 . . . 45 . 15 . 105 . 36 . . . 72 84 . . 12 Influence Decreases 5144 | . 100 302 . 90 270 138 729 144 418 180 379 178 437 66 770 383 368 12 1 179 Entered New Map 2009 | . . 35 . . 18 28 381 24 87 120 349 108 175 16 408 143 108 6 1 2 Time Decay 1929 | . 90 257 . 70 192 . 198 . 271 . 30 . 222 . 222 . 251 6 . 120 Lost Part 312 | . 10 10 . . . 10 . . 40 20 . 10 . 10 20 120 9 . . 53 Lost Ally 744 | . . . . 20 60 100 . 120 20 40 . 60 40 40 120 120 . . . 4 Purge Threat 150 | . . . . . . . 150 . . . . . . . . . . . . . Squads Dispatched 21 | . . . . . . . 2 . 5 . . 2 1 . 3 . 5 . . 3 Investigation 1 | . . . . . . . . . . . . . . . . . 1 . . . Extermination 9 | . . . . . . . . . 3 . . . 1 . 1 . 2 . . 2 Reinforcement 10 | . . . . . . . 2 . 2 . . 2 . . 1 . 2 . . 1 Assault . | . . . . . . . . . . . . . . . . . . . . . Garrison 1 | . . . . . . . . . . . . . . . 1 . . . . . Intercept . | . . . . . . . . . . . . . . . . . . . . . Searches Triggered . | . . . . . . . . . . . . . . . . . . . . . Construction Impeded 3 | . . . . . . . . . 1 . . . . . 1 . . . . 1 Haulers Reinforced 1 | . . . . . . . . . 1 . . . . . . . . . . . Active Scanning Responses . | . . . . . . . . . . . . . . . . . . . . . Cargo Convoy Interrupts . | . . . . . . . . . . . . . . . . . . . . . Stealth | -11 -10 -10 -10 -9 -8 -8 -7 -7 -6 -6 -6 -6 -5 -5 -4 -4 -3 -2 -2 -1 --------- Run | Yrd Mat Min Exi Min Mat Gar Fac Gar Fac Gar Fac DSF Fac Gar Fac Gar Res Res DSF Acc Distress Signals 11 | . . . . . 1 . . . 1 . . . . . 3 . 4 . . 2 Communications Jammed . | . . . . . . . . . . . . . . . . . . . . . Distress Signals . | . . . . . . . . . . . . . . . . . . . . . Times Spotted 272 | . 6 11 . 4 7 26 4 13 28 23 . 12 8 21 23 21 32 . 1 32 Peak Tracking Total 18 | . 4 3 . 4 4 4 2 6 4 6 . 5 3 6 8 15 18 . 1 18 Tactical Retreats 16 | . 1 1 . . . 2 . 1 . 2 . 1 . . . 2 5 . . 1 Traps | -11 -10 -10 -10 -9 -8 -8 -7 -7 -6 -6 -6 -6 -5 -5 -4 -4 -3 -2 -2 -1 ------- Run | Yrd Mat Min Exi Min Mat Gar Fac Gar Fac Gar Fac DSF Fac Gar Fac Gar Res Res DSF Acc Traps Triggered 14 | . . . . . . 3 . . 1 . . 1 1 2 . 1 2 . . 3 Indirectly . | . . . . . . . . . . . . . . . . . . . . . Trap Hack Attempts . | . . . . . . . . . . . . . . . . . . . . . Triggered . | . . . . . . . . . . . . . . . . . . . . . Disarmed . | . . . . . . . . . . . . . . . . . . . . . Reprogrammed . | . . . . . . . . . . . . . . . . . . . . . Reused . | . . . . . . . . . . . . . . . . . . . . . Traps Extracted . | . . . . . . . . . . . . . . . . . . . . . Installed . | . . . . . . . . . . . . . . . . . . . . . Triggered . | . . . . . . . . . . . . . . . . . . . . . Machines | -11 -10 -10 -10 -9 -8 -8 -7 -7 -6 -6 -6 -6 -5 -5 -4 -4 -3 -2 -2 -1 ---------- Run | Yrd Mat Min Exi Min Mat Gar Fac Gar Fac Gar Fac DSF Fac Gar Fac Gar Res Res DSF Acc Machines Disabled 22 | . . . . . 2 1 . 1 2 2 . 1 1 7 3 1 1 . . . Max in Single Turn 3 | . . . . . 1 1 . 1 1 1 . . 1 1 3 1 1 . . . Garrison Access 3 | . . . . . . . . . . . . . . . . . 1 . . 2 Garrison Relay 11 | . . . . . . 1 . 1 . 2 . . . 6 . 1 . . . . Machines Repaired . | . . . . . . . . . . . . . . . . . . . . . Machines Dismantled . | . . . . . . . . . . . . . . . . . . . . . Machines Sabotaged . | . . . . . . . . . . . . . . . . . . . . . Overloaded Fab Kills . | . . . . . . . . . . . . . . . . . . . . . Hacking | -11 -10 -10 -10 -9 -8 -8 -7 -7 -6 -6 -6 -6 -5 -5 -4 -4 -3 -2 -2 -1 --------- Run | Yrd Mat Min Exi Min Mat Gar Fac Gar Fac Gar Fac DSF Fac Gar Fac Gar Res Res DSF Acc Machines Accessed 44 | . . . 1 . 6 3 4 1 2 . 2 . 3 2 2 1 10 3 . 4 Terminals 33 | . . . . . 5 3 2 1 1 . 2 . 2 2 1 1 9 2 . 2 Fabricators 2 | . . . . . . . 1 . . . . . . . . . . 1 . . Repair Stations . | . . . . . . . . . . . . . . . . . . . . . Recycling Units . | . . . . . . . . . . . . . . . . . . . . . Scanalyzers . | . . . . . . . . . . . . . . . . . . . . . Garrison Access 8 | . . . . . 1 . 1 . 1 . . . 1 . 1 . 1 . . 2 Total Hacks 67 | . . . 1 . 19 3 7 1 2 . 2 . 4 2 4 1 14 3 . 4 Successful 26 | . . . 1 . 5 3 4 . 1 . 1 . 1 1 1 1 4 1 . 2 Failed 41 | . . . . . 14 . 3 1 1 . 1 . 3 1 3 . 10 2 . 2 Catastrophic 17 | . . . . . 2 . 1 1 1 . 1 . 1 1 . . 6 1 . 2 Database Lockouts . | . . . . . . . . . . . . . . . . . . . . . Manual 26 | . . . 1 . 11 . . . . . 1 . 1 . 3 . 8 1 . . Terminals 55 | . . . . . 18 3 5 1 1 . 2 . 3 2 3 1 12 2 . 2 Fabricators 2 | . . . . . . . 1 . . . . . . . . . . 1 . . Repair Stations . | . . . . . . . . . . . . . . . . . . . . . Recycling Units . | . . . . . . . . . . . . . . . . . . . . . Scanalyzers . | . . . . . . . . . . . . . . . . . . . . . Garrison Access 9 | . . . . . 1 . 1 . 1 . . . 1 . 1 . 2 . . 2 Terminal Hacks 13 | . . . 1 . 2 3 2 . . . 1 . . 1 . 1 1 1 . . Open Door 1 | . . . . . . 1 . . . . . . . . . . . . . . Open DSF 2 | . . . . . . . . . . . 1 . . . . . . 1 . . Level Access Points 1 | . . . . . . . . . . . . . . . . . 1 . . . Branch Access Points 1 | . . . . . 1 . . . . . . . . . . . . . . . Emergency Access Points 3 | . . . . . . 1 . . . . . . . 1 . 1 . . . . Unreport Threat 1 | . . . . . . . 1 . . . . . . . . . . . . . Locate Traps 2 | . . . . . 1 . 1 . . . . . . . . . . . . . Security Stations 1 | . . . . . . 1 . . . . . . . . . . . . . . Proto ID Catalog 1 | . . . 1 . . . . . . . . . . . . . . . . . Fabricator Hacks 1 | . . . . . . . 1 . . . . . . . . . . . . . Build 1 | . . . . . . . 1 . . . . . . . . . . . . . Repair Station Hacks . | . . . . . . . . . . . . . . . . . . . . . Recycling Unit Hacks . | . . . . . . . . . . . . . . . . . . . . . Scanalyzer . | . . . . . . . . . . . . . . . . . . . . . Garrison Access Hacks 9 | . . . . . 1 . 1 . 1 . . . 1 . 1 . 2 . . 2 Unlock Access 5 | . . . . . 1 . 1 . 1 . . . 1 . 1 . . . . . Seal Access 3 | . . . . . . . . . . . . . . . . . 1 . . 2 Coupler Status 1 | . . . . . . . . . . . . . . . . . 1 . . . Unauthorized Hacks 3 | . . . . . 2 . . . . . . . . . . . 1 . . . Terminals 3 | . . . . . 2 . . . . . . . . . . . 1 . . . Botnet 3 | . . . . . 2 . . . . . . . . . . . 1 . . . Fabricators . | . . . . . . . . . . . . . . . . . . . . . Repair Stations . | . . . . . . . . . . . . . . . . . . . . . Recycling Units . | . . . . . . . . . . . . . . . . . . . . . Scanalyzers . | . . . . . . . . . . . . . . . . . . . . . Garrison Access . | . . . . . . . . . . . . . . . . . . . . . Data Cores Recovered 1 | . . . . . . . . . . . . . . . 1 . . . . . Used 1 | . . . . . . . . . . . . . . . 1 . . . . . Hacking Detections 29 | . . . . . 5 1 2 1 2 . 1 . 3 1 1 . 8 2 . 2 Full Trace Events 1 | . . . . . . . . . . . . . . . . . 1 . . . Feedback Events . | . . . . . . . . . . . . . . . . . . . . . Feedback Blocked . | . . . . . . . . . . . . . . . . . . . . . Robot Schematics Acquired . | . . . . . . . . . . . . . . . . . . . . . Robots Built . | . . . . . . . . . . . . . . . . . . . . . Authchips . | . . . . . . . . . . . . . . . . . . . . . Time 134 | . . . . . . . 134 . . . . . . . . . . . . . Total Robot Build Rating . | . . . . . . . . . . . . . . . . . . . . . Part Schematics Acquired . | . . . . . . . . . . . . . . . . . . . . . Parts Built . | . . . . . . . . . . . . . . . . . . . . . Authchips . | . . . . . . . . . . . . . . . . . . . . . Time . | . . . . . . . . . . . . . . . . . . . . . Total Part Build Rating . | . . . . . . . . . . . . . . . . . . . . . Parts Repaired . | . . . . . . . . . . . . . . . . . . . . . Time . | . . . . . . . . . . . . . . . . . . . . . Parts Recycled . | . . . . . . . . . . . . . . . . . . . . . Recycled Matter . | . . . . . . . . . . . . . . . . . . . . . Retrieved Matter . | . . . . . . . . . . . . . . . . . . . . . Retrieved Components . | . . . . . . . . . . . . . . . . . . . . . Parts Scanalyzed . | . . . . . . . . . . . . . . . . . . . . . Part Schematics Acquired . | . . . . . . . . . . . . . . . . . . . . . Parts Damaged . | . . . . . . . . . . . . . . . . . . . . . Bothacking | -11 -10 -10 -10 -9 -8 -8 -7 -7 -6 -6 -6 -6 -5 -5 -4 -4 -3 -2 -2 -1 ------------ Run | Yrd Mat Min Exi Min Mat Gar Fac Gar Fac Gar Fac DSF Fac Gar Fac Gar Res Res DSF Acc Used RIF Installer 6 | . . . . . . 1 . 1 . 1 . . . 1 . 2 . . . . Coupler Efficiency 1 | . . . . . . . . 1 . . . . . . . . . . . . Code Merge 1 | . . . . . . . . . . . . . . . . 1 . . . . Threat Obfuscator 1 | . . . . . . . . . . 1 . . . . . . . . . . Signal Jammer 1 | . . . . . . . . . . . . . . . . 1 . . . . Patrol Navigation 1 | . . . . . . . . . . . . . . 1 . . . . . . Robots Hacked 41 | . . . . . . 2 2 7 1 6 . 2 3 6 8 4 . . . . Non-combat . | . . . . . . . . . . . . . . . . . . . . . Combat 41 | . . . . . . 2 2 7 1 6 . 2 3 6 8 4 . . . . Robot Hacks Applied 45 | . . . . . . 2 3 8 2 6 . 2 4 6 8 4 . . . . find_shortcuts 1 | . . . . . . . . 1 . . . . . . . . . . . . find_garrison 4 | . . . . . . . 1 . 1 . . . 1 . 1 . . . . . scatter_targeting 1 | . . . . . . . . 1 . . . . . . . . . . . . disable_weapons 2 | . . . . . . . . . . . . . 1 1 . . . . . . overwrite_iff 14 | . . . . . . . . 5 . 1 . . . 2 4 2 . . . . formatsys_high 23 | . . . . . . 2 2 1 1 5 . 2 2 3 3 2 . . . . Relay Couplers Released 48 | . . . . . . 3 . 4 . 13 . . . 24 . 4 . . . . Machine Destruction 44 | . . . . . . 3 . 4 . 9 . . . 24 . 4 . . . . Programmers 4 | . . . . . . . . . . 4 . . . . . . . . . . Attached 18 | . . . . . . 1 1 1 1 4 . 1 1 3 2 2 1 . . . Fabnet Peak Effective % . | . . . . . . . . . . . . . . . . . . . . . Robots Rewired 10 | . . . . . . 8 . . . . . . . 2 . . . . . . Allies Hacked 3 | . . . . . . 2 . . . . . . . 1 . . . . . . Hacks Repelled . | . . . . . . . . . . . . . . . . . . . . . Allies | -11 -10 -10 -10 -9 -8 -8 -7 -7 -6 -6 -6 -6 -5 -5 -4 -4 -3 -2 -2 -1 -------- Run | Yrd Mat Min Exi Min Mat Gar Fac Gar Fac Gar Fac DSF Fac Gar Fac Gar Res Res DSF Acc Total Allies 54 | . . 3 . 3 . 10 2 5 1 6 . 2 2 9 7 4 . . . . Largest Group 7 | . . 3 3 6 5 5 6 4 1 5 4 5 4 7 5 5 . . . . Highest-Rated Group 334 | . . 40 40 117 101 88 95 61 32 177 148 252 160 334 263 225 . . . . Highest-Rated Ally 90 | . . 16 16 31 31 31 18 16 32 47 47 90 49 80 74 58 . . . . Total Orders 5 | . . . . . . . 1 . 2 . . . . . . . 1 . . 1 STAY 2 | . . . . . . . 1 . 1 . . . . . . . . . . . FOLLOW 1 | . . . . . . . . . 1 . . . . . . . . . . . EXPLORE 1 | . . . . . . . . . . . . . . . . . . . . 1 RETURN 1 | . . . . . . . . . . . . . . . . . 1 . . . Ally Attacks 298 | . . . . 6 21 44 . 21 29 10 . 33 15 59 44 16 . . . . Total Damage 6632 | . . . . 21 258 726 . 200 734 276 . 596 291 1543 1371 616 . . . . Kills 60 | . . . . . 6 6 . 2 7 2 . 7 6 15 9 . . . . . Allies Corrupted . | . . . . . . . . . . . . . . . . . . . . . Allies Melted . | . . . . . . . . . . . . . . . . . . . . . Intel | -11 -10 -10 -10 -9 -8 -8 -7 -7 -6 -6 -6 -6 -5 -5 -4 -4 -3 -2 -2 -1 ------- Run | Yrd Mat Min Exi Min Mat Gar Fac Gar Fac Gar Fac DSF Fac Gar Fac Gar Res Res DSF Acc Active Infowar (turns) 6422 | . 22 944 261 187 18 . 404 453 1023 . . . 456 615 477 462 786 45 19 250 Optics 4990 | . . . . . . . 404 453 1023 . . . 456 615 477 462 786 45 19 250 Structural 1432 | . 22 944 261 187 18 . . . . . . . . . . . . . . . Cloaking 178 | . . . . . . . . . . . . . . . . . 12 . 11 155 Robot Analysis Total . | . . . . . . . . . . . . . . . . . . . . . Derelict Logs Recovered 2 | . . 1 . 1 . . . . . . . . . . . . . . . . Drone Launches 7 | . . . . . . . . . . . . . . . . . 5 . . 2 Drone Recoveries 5 | . . . . . . . . . . . . . . . . . 5 . . . Exploration | -11 -10 -10 -10 -9 -8 -8 -7 -7 -6 -6 -6 -6 -5 -5 -4 -4 -3 -2 -2 -1 ------------- Run | Yrd Mat Min Exi Min Mat Gar Fac Gar Fac Gar Fac DSF Fac Gar Fac Gar Res Res DSF Acc Turns Passed 10636 | . 277 944 261 187 751 1305 405 453 1503 913 64 188 479 615 477 462 786 45 19 502 Spaces Moved 7255 | 1 146 680 216 145 430 645 209 254 771 409 40 86 247 308 251 229 1297 97 34 760 Core 804 | . . . . . . . . . . 1 . . . . . 87 630 . . 86 Treads 3791 | . . . . . 430 645 209 254 771 408 40 86 247 308 251 142 . . . . Legs 1188 | 1 146 680 216 145 . . . . . . . . . . . . . . . . Wheels . | . . . . . . . . . . . . . . . . . . . . . Hover . | . . . . . . . . . . . . . . . . . . . . . Flight 1472 | . . . . . . . . . . . . . . . . . 667 97 34 674 Fastest Speed 35 | 120 120 120 120 120 160 160 160 160 160 160 160 160 160 160 160 50 40 45 45 35 Average Speed 120 | 120 120 120 120 120 160 160 160 160 167 186 160 160 160 160 160 118 51 45 45 43 Slowest Speed 1350 | 120 120 120 120 120 160 160 160 160 240 1350 160 160 160 160 160 160 200 45 45 250 Overloaded Moves . | . . . . . . . . . . . . . . . . . . . . . Propulsion Burnouts . | . . . . . . . . . . . . . . . . . . . . . Robots Hopped 13 | . . . . . . . . . . . . . . . . . 10 1 . 2 Potential Cave-ins 11 | . . . . . . . . . . . . . . . . . 2 . . 9 Cave-ins Triggered 1 | . . . . . . . . . . . . . . . . . . . . 1 Exploration Rate (%) 34 | 2 15 95 61 33 43 56 8 42 21 33 1 87 11 47 9 34 43 5 49 23 Regions Visited 20 Branch Regions 3 Pre-discovered Areas . | . . . . . . . . . . . . . . . . . . . . . Known Exits Taken 8 | . . . . . 1 . 1 . 1 . 1 . 1 . 1 . 1 1 . . Unknown Exits Taken 5 | 1 1 1 1 1 . . . . . . . . . . . . . . . . Scrap Searched 3 | . . 1 . 2 . . . . . . . . . . . . . . . . Spaces Dug 26 | . . . . 2 . . . . 2 1 . . . . . . 6 . . 15 Terrain Destroyed 168 | . . . . 14 . 45 . 4 17 15 . . 6 . 32 . 8 . . 27 Melee 17 | . . . . 2 . . . . . . . . . . . . . . . 15 Projectile 36 | . . . . . . 1 . . 17 6 . . 2 . 2 . 8 . . . AOE 115 | . . . . 12 . 44 . 4 . 9 . . 4 . 30 . . . . 12 Terrain Rammed . | . . . . . . . . . . . . . . . . . . . . . Walls Destroyed . | . . . . . . . . . . . . . . . . . . . . . Machines Disabled . | . . . . . . . . . . . . . . . . . . . . . Actions | -11 -10 -10 -10 -9 -8 -8 -7 -7 -6 -6 -6 -6 -5 -5 -4 -4 -3 -2 -2 -1 --------- Run | Yrd Mat Min Exi Min Mat Gar Fac Gar Fac Gar Fac DSF Fac Gar Fac Gar Res Res DSF Acc Total 8605 | . 196 752 218 152 487 857 277 281 910 503 40 132 318 385 292 409 1396 96 36 868 Wait 431 | . 8 3 . . . 11 54 2 66 19 . . 47 6 7 148 40 . . 20 Move 7207 | . 145 679 215 144 429 643 209 252 770 407 39 86 246 306 250 227 1277 94 33 756 Hop 12 | . . . . . . . . . . . . . . . . . 9 1 . 2 Pick Up 78 | . 3 4 1 1 11 13 2 1 7 9 . 1 3 10 . 4 6 . 1 1 Fast Attach 58 | . 2 2 . . 6 5 1 . 4 4 . . 2 2 2 . 16 1 1 10 Attach 54 | . 1 1 . . 6 1 2 1 6 8 . 1 3 4 2 3 11 . 1 3 Detach 42 | . 1 1 . . 6 3 1 . 4 4 . 1 3 2 . 2 11 . . 3 Swap 59 | . 2 5 1 1 7 14 2 3 6 3 1 . 3 4 5 2 . . . . Drop 89 | . 3 9 1 1 13 22 1 1 6 6 . . . 6 1 3 11 . . 5 Fire 321 | . 31 34 . 3 7 47 3 18 39 39 . 6 9 32 23 15 13 . . 2 Melee 43 | . . . . 2 . . . . . . . . . . . . . . . 41 Ram 7 | . . . . . . . . . . . . . . . . 4 2 . . 1 Kick 14 | . . 14 . . . . . . . . . . . . . . . . . . Crush 4 | . . . . . 2 . . . 2 . . . . . . . . . . . Escape Stasis 27 | . . . . . . . . 3 . . . . . . . . . . . 24 Rewire 159 | . . . . . . 98 2 . . 4 . 37 2 13 2 1 . . . . Trap . | . . . . . . . . . . . . . . . . . . . . . Miscellaneous . | . . . . . . . . . . . . . . . . . . . . . Route ------- -11/Scrapyard -10/Materials -10/Mines (discovered 4 exits: [*Mat x2] / *Exi / [*Sub]) -10/Exiles -9/Mines -8/Materials (discovered 2 exits: *Fac / Gar) -8/Garrison (discovered 2 exits: *Fac x2) -7/Factory -7/Garrison -6/Factory (discovered 2 exits: [*Low] / Gar) -6/Garrison -6/Factory -6/DSF -5/Factory -5/Garrison -4/Factory -4/Garrison -3/Research (discovered 3 exits: *Res x3) -2/Research -2/DSF -1/Access History --------- Turn | Location | Event 1 | -11/Scrapyard | Discovered new exit (range 0) 1 | -11/Scrapyard | Entered Materials 272 | -10/Materials | Discovered new exit (range 6) 278 | -10/Materials | Entered Mines 315 | -10/Mines | Build established: Mutant 684 | -10/Mines | Discovered new exit (range 9) 694 | -10/Mines | Discovered new exit (range 5) 791 | -10/Mines | Learned Materials terminal intel 913 | -10/Mines | A weapon hastily lodged in a ceiling crevice suddenly fell to the ground 940 | -10/Mines | Received a Rocket Launcher from a helpful Derelict 977 | -10/Mines | Assisted by bots powering up and referring to "LRC-V3" 1001 | -10/Mines | Deemed a non-threat by the Exiles lab entrance 1001 | -10/Mines | Discovered new exit (range 5) 1149 | -10/Mines | Discovered new exit (range 6) 1222 | -10/Mines | Entered Exiles 1222 | -10/Exiles | Accompanied by 3 allies 1254 | -10/Exiles | Met 8R-AWN 1274 | -10/Exiles | Met EX-HEX 1309 | -10/Exiles | Met EX-BIN 1326 | -10/Exiles | Aligned with FarCom system 1327 | -10/Exiles | Given EX-Vault access code 1356 | -10/Exiles | Opened EX-Vault 1364 | -10/Exiles | Found Superbattery 1389 | -10/Exiles | Warned to stay clear of 0b10 Research branches 1423 | -10/Exiles | Met EX-DEC 1471 | -10/Exiles | Discovered new exit (range 11) 1483 | -10/Exiles | Left Exiles lab with Superbattery 1483 | -10/Exiles | Entered Mines 1483 | -9/Mines | Accompanied by 3 allies 1523 | -9/Mines | Discovered new exit (range 9) 1526 | -9/Mines | Core integrity fell below 50% 1592 | -9/Mines | Received a Mining Laser from a helpful Derelict 1638 | -9/Mines | Assembled infested the area 1643 | -9/Mines | Assisted by a Guerilla fighting off Assembled 1670 | -9/Mines | Entered Materials 1670 | -8/Materials | Accompanied by 5 allies 1670 | -8/Materials | Evolved 4 slots: Propulsion x1, Utility x2, Weapon x1 1671 | -8/Materials | Loaded intel: 12 terminal locations 1675 | -8/Materials | Led the pair of lost Derelicts to an unsafe place 2307 | -8/Materials | Build established: Gunner 2377 | -8/Materials | Discovered new exit (range 8) 2419 | -8/Materials | Identified exit to Garrison 2421 | -8/Materials | Entered Garrison 2421 | -8/Garrison | Accompanied by 1 ally 2515 | -8/Garrison | Triggered checkpoint 2551 | -8/Garrison | Triggered checkpoint 2709 | -8/Garrison | Triggered checkpoint 2730 | -8/Garrison | Triggered checkpoint 2765 | -8/Garrison | Triggered checkpoint 3131 | -8/Garrison | Discovered new exit (range 6) 3305 | -8/Garrison | Build established: Commander-Skirmisher 3329 | -8/Garrison | Triggered checkpoint 3371 | -8/Garrison | Installed Relay Interface Framework 3411 | -8/Garrison | Learned Factory security intel 3439 | -8/Garrison | Spotted B-75 Beast 3455 | -8/Garrison | Destroyed B-75 Beast 3568 | -8/Garrison | Discovered new exit (range 8) 3601 | -8/Garrison | Triggered checkpoint 3632 | -8/Garrison | Build established: Scavenger-Skirmisher 3678 | -8/Garrison | Garrison Relay disabled 3726 | -8/Garrison | Entered Factory 3726 | -7/Factory | Accompanied by 4 allies 3726 | -7/Factory | Evolved 2 slots: Utility x2 4075 | -7/Factory | Identified exit to Garrison 4131 | -7/Factory | Entered Garrison 4131 | -7/Garrison | Accompanied by 3 allies 4146 | -7/Garrison | Expanded RIF knowledge: Coupler Efficiency 4183 | -7/Garrison | Triggered checkpoint 4218 | -7/Garrison | Garrison Relay disabled 4361 | -7/Garrison | Triggered checkpoint 4376 | -7/Garrison | Triggered checkpoint 4416 | -7/Garrison | Lost 5 allies 4563 | -7/Garrison | Discovered new exit (range 13) 4584 | -7/Garrison | Entered Factory 4584 | -6/Factory | Accompanied by 1 ally 4584 | -6/Factory | Evolved 2 slots: Utility x2 4894 | -6/Factory | Build established: Scavenger-Gunner 5153 | -6/Factory | Discovered new exit (range 9) 5839 | -6/Factory | Build established: Gunner 6077 | -6/Factory | Identified exit to Garrison 6087 | -6/Factory | Entered Garrison 6597 | -6/Garrison | Triggered checkpoint 6628 | -6/Garrison | Garrison Relay disabled 6679 | -6/Garrison | Triggered checkpoint 6771 | -6/Garrison | Triggered checkpoint 6805 | -6/Garrison | Expanded RIF knowledge: Threat Obfuscation 6820 | -6/Garrison | Garrison Relay disabled 6910 | -6/Garrison | Discovered new exit (range 10) 6943 | -6/Garrison | Triggered checkpoint 7000 | -6/Garrison | Entered Factory 7000 | -6/Factory | Accompanied by 4 allies 7061 | -6/Factory | Identified exit to DSF 7064 | -6/Factory | Entered DSF 7064 | -6/DSF | Accompanied by 4 allies 7135 | -6/DSF | Additional patrols routed to DSF 7219 | -6/DSF | Discovered new exit (range 15) 7252 | -6/DSF | Entered Factory 7252 | -5/Factory | Accompanied by 2 allies 7252 | -5/Factory | Evolved 2 slots: Propulsion x1, Utility x1 7280 | -5/Factory | Lost 3 allies 7598 | -5/Factory | Build established: Bothacker-Tank 7729 | -5/Factory | Identified exit to Garrison 7731 | -5/Factory | Entered Garrison 7731 | -5/Garrison | Accompanied by 2 allies 7755 | -5/Garrison | Triggered checkpoint 7772 | -5/Garrison | Garrison Relay disabled 7905 | -5/Garrison | Triggered checkpoint 7915 | -5/Garrison | Triggered checkpoint 7969 | -5/Garrison | Triggered checkpoint 8013 | -5/Garrison | Expanded RIF knowledge: Patrol Navigation 8062 | -5/Garrison | Discovered new exit (range 10) 8079 | -5/Garrison | Found embedded Infiltrators 8081 | -5/Garrison | Triggered checkpoint 8116 | -5/Garrison | Garrison Relay disabled 8208 | -5/Garrison | Garrison Relay disabled 8216 | -5/Garrison | P-70 Sage assimilated allied Soldier 6c 8246 | -5/Garrison | Warlord forces raided the area 8258 | -5/Garrison | Garrison Relay disabled 8278 | -5/Garrison | Garrison Relay disabled 8289 | -5/Garrison | Garrison Relay disabled 8346 | -5/Garrison | Entered Factory 8346 | -4/Factory | Accompanied by 5 allies 8346 | -4/Factory | Evolved 2 slots: Utility x2 8532 | -4/Factory | Build established: Botlord-Tank 8737 | -4/Factory | Lost 3 allies 8747 | -4/Factory | Garrison activated, responded to threat 8792 | -4/Factory | Lost 4 allies 8816 | -4/Factory | Identified exit to Garrison 8823 | -4/Factory | Entered Garrison 8823 | -4/Garrison | Accompanied by 3 allies 8859 | -4/Garrison | Triggered checkpoint 8882 | -4/Garrison | Garrison Relay disabled 9203 | -4/Garrison | Spotted B-86 Titan 9211 | -4/Garrison | Triggered checkpoint 9211 | -4/Garrison | Triggered checkpoint 9246 | -4/Garrison | Expanded RIF knowledge: Signal Jamming 9254 | -4/Garrison | Discovered new exit (range 11) 9264 | -4/Garrison | Lost 5 allies 9268 | -4/Garrison | Core integrity fell below 50% 9276 | -4/Garrison | Expanded RIF knowledge: Code Merge 9285 | -4/Garrison | Entered Research 9285 | -3/Research | Evolved 2 slots: Power x1, Propulsion x1 9315 | -3/Research | Lost 12 parts (1n7u4w) 9545 | -3/Research | Build established: Mutant 9738 | -3/Research | Found Fusion Bomb Launcher 9771 | -3/Research | Found Prototype Device 9771 | -3/Research | Identified Exp. Thermal Defense Suite 9827 | -3/Research | Spotted B-86 Titan 10045 | -3/Research | Identified exit to Research 10071 | -3/Research | Entered another Research area 10071 | -2/Research | Evolved 2 slots: Propulsion x1, Utility x1 10099 | -2/Research | Lost 3 parts (1n2u) 10116 | -2/Research | Identified exit to DSF 10116 | -2/Research | Entered DSF 10122 | -2/DSF | Discovered new exit (range 21) 10134 | -2/DSF | Identified exit to Access 10135 | -2/DSF | Entered Access 10135 | -1/Access | Evolved 2 slots: Utility x2 10385 | -1/Access | Crushed by falling debris 10385 | -1/Access | System corruption reached 10% 10416 | -1/Access | Lost 5 parts (1p4u) 10625 | -1/Access | Spotted B-99 Colossus 10626 | -1/Access | Spotted B-99 Colossus 10630 | -1/Access | Core integrity fell below 50% 10636 | -1/Access | Core integrity fell below 20% 10637 | -1/Access | Destroyed by B-99 Colossus with Multirail Last Messages --------------- 10630_ Fusion Bomb Launcher destroyed. 10630_ Penetrated by Slug. 10631_ System corrupted: Matter fused (-10). 10632_ Hacking Suite destroyed. 10632_ Knocked back. 10632_ Penetrated by Slug. 10634_ Slug penetrates Wall. 10634_ Penetrated by Slug. 10634_ Acquired 3 matter. 10636_ Penetrated by Slug. 10636_ Slug penetrates Reinforced Barrier. 10636_ Penetrated by Slug. 10636_ Slug penetrates Reinforced Barrier. 10637_ B-99 Colossus activates siege mode. 10637_ Knocked back. 10637_ Slug penetrates Sealed Heavy Doors. 10637_ Adv. Signal Interpreter destroyed. 10637_ Slug penetrates B-99 Colossus. 10637_ Penetrated by Slug. 10637_ Slug penetrates B-99 Colossus. Map ----- +----------------------------------------------------+ | ## #?????????????????????????????????????? | | ## #?????????????????????????????????????? | | ## +?????????????????????????????????????? | | ## #?????????????? ?????????????????????? | | ## #?????######### ????????????????????? | | # #????? ???????????????????? | | # +????? ????????????????? | | / #?????? ! ???????????????? | | # #?????? ???????????????? | | ## #??????# w ??????????????? | | #####+###+######## ??????????????? | | # # ?????????????? | | # # * ?????????????? | | # pg p # !*??????????????? | | # k ; **??????????????? | | # + s w ??????????????? | | # #ss #?????????????????????? | | # % ; s ????????????????????????? | | ################ % ####??????????????????????? | | ??????????????# #??????????????????????? | | ???????????????# % #??????????????????????? | | ???????????????# %#??????????????????????? | | ???????????????# #??????????????????????? | | ???????????????# BB BB #??????????????????????? | | ???????????????# BB BB%#??????????????????????? | | ???????????????# @#??????????????????????? | | ???????????????#""""""""""#??????????????????????? | | ?????????????????????????????????????????????????? | | ?????????????????????????????????????????????????? | | ?????????????????????????????????????????????????? | | ?????????????????????????????????????????????????? | | ?????????????????????????????????????????????????? | | ?????????????????????????????????????????????????? | | ?????????????????????????????????????????????????? | | ?????????????????????????????????????????????????? | | ?????????????????????????????????????????????????? | | ?????????????????????????????????????????????????? | | ?????????????????????????????????????????????????? | | ?????????????????????????????????????????????????? | | ?????????????????????????????????????????????????? | | ?????????????????????????????????????????????????? | | ?????????????????????????????????????????????????? | | ?????????????????????????????????????????????????? | | ?????????????????????????????????????????????????? | | ?????????????????????????????????????????????????? | | ?????????????????????????????????????????????????? | | ?????????????????????????????????????????????????? | | ?????????????????????????????????????????????????? | | ?????????????????????????????????????????????????? | | ?????????????????????????????????????????????????? | +----------------------------------------------------+ Best States ------------- Heat Dissipation 119 Coolant Potential 65 Energy Generation 23 Energy Capacity 1800 Matter Stores 300 Matter Capacity 300 Sight Range 22 Terrain Scan Density 210 Cloak Strength 2 Power Amplification 20 Additional Mass Support 9 Base Temperature (-) 200 EM Shielding 4 Corruption Containment 8 Corruption Block 15 Armor Coverage 450 Resistance: KI 30 Evasion (%) 75 Targeting Accuracy 16 Target Analysis 6 Core Analysis 6 Recoil Reduction 4 Particle Charging 30 Offensive Hacking 10 Relay Coupler Types 3 Relay Coupler Value 70 Item Schematics ----------------- None Robot Schematics ------------------ None Fabricated ------------ Nothing Repaired ---------- Nothing Alien Tech Used ----------------- None Achievements -------------- None Challenges ------------ None Game ------ Seed DisassembledFrostArmor Manual? 0 Play Time 01:52:57 Cumulative 267.9 hours Start 2025.05.10 @ 17:02:26 End 2025.05.10 @ 18:55:28 Sessions 1 Manual Loads 0 Difficulty Rogue Special Mode None Game No. 190 Rogue 190 Adventurer 0 Explorer 0 Win Type - Total 21 Types 17/0/2/2/0/0/0/0/0/0 Lore% 83 Gallery% 71 Achievement% 62 Wizard Run 0 Options --------- Layout 0 ASCII 1 Keyboard 1 Movement Arrows Keybinds 0 Fullscreen 1 Font 18/Terminus Map View 76x50 Zoom Use 0% Tactical HUD 1 Map Filters NONE Filters NONE Steam 1 RUN: 0b96a6d0-d2a0-4175-97e9-fe6a3523e157